[Event "USA-ch Women 2024"]
[Site "Saint Louis"]
[Date "2024.10.23"]
[Round "10.6"]
[White "Pourkashiyan, Atousa"]
[Black "Atwell, Rose"]
[Result "0-1"]
[ECO "D00"]
[WhiteElo "2269"]
[BlackElo "2185"]
[Annotator "RC"]
[PlyCount "72"]
[EventDate "2024.10.09"]
[EventType "tourn"]
[EventCountry "USA"]
[SourceTitle "playchess.com"]
[Source "ChessBase"]
[SourceQuality "1"]
[TimeControl "40/5400+30:1800+30"]

1. d4 {[%emt 0:02:15]} d5 {[%emt 0:00:04]} 2. Nc3 {[%emt 0:00:04]} Nf6 {[%emt 0:00:06]} 3. Bf4 {[%emt 0:00:04]} a6 {[%emt 0:00:05]} 4. e3 {[%emt 0:00:30]} e6 {[%emt 0:00:05]} 5. Nf3 {[%emt 0:01:00]} Bd6 {[%emt 0:01:50]} 6. Ne5 {[%emt 0:00:26]} c5 {[%emt 0:04:20]} 7. dxc5 {[%emt 0:04:39]} Bxc5 {[%emt 0:00:24]} 8. Bd3 {[%emt 0:01:43]} Nc6 {[%emt 0:04:14]} 9. O-O {[%emt 0:07:05]} Nxe5 {[%emt 0:06:25]} 10. Bxe5 {[%emt 0:00:08]} Bd6 {[%emt 0:00:43]} 11. f4 {[%emt 0:14:02]} O-O {[%emt 0:07:51]} 12. Bd4 {[%emt 0:12:18]} Re8 {[%emt 0:06:15]} 13. Bxf6 {[%emt 0:05:58]} Qxf6 {[%emt 0:00:55]} 14. Kh1 {[%emt 0:01:55]} Qh6 {[%emt 0:09:08]} 15. Qf3 {[%emt 0:02:11]} Bd7 {[%emt 0:02:46]} 16. e4 {[%emt 0:04:24]} d4 {[%emt 0:03:02]} 17. Ne2 {[%emt 0:01:22]} e5 {[%emt 0:04:21]} 18. f5 {[%emt 0:03:47]} Rac8 {[%emt 0:05:15]} 19. Ng3 {[%emt 0:04:10]} Be7 {[%emt 0:02:48]} 20. Nh5 {[%emt 0:01:29]} Bg5 {[%emt 0:03:07]} 21. Qe2 {[%emt 0:01:35]} Rc6 {[%emt 0:02:39]} 22. a4 {[%emt 0:02:10]} g6 {[%emt 0:02:09]} 23. Ng3 {[%emt 0:03:28]} Bf4 {[%emt 0:01:54]} 24. Rf3 {[%emt 0:00:02]} gxf5 {[%emt 0:03:26]} 25. h3 {[%emt 0:10:09]} Bxg3 {[%emt 0:04:34]} 26. Rxg3+ {[%emt 0:00:03]} Rg6 {[%emt 0:00:09]} 27. Rxg6+ {[%emt 0:02:29]} hxg6 {[%emt 0:01:17]} 28. Rf1 {[%emt 0:02:37]} f4 {[%emt 0:02:33]} 29. Bc4 {[%emt 0:01:43]} Kg7 {[%emt 0:01:57]} 30. Qd3 {[%emt 0:01:09]} g5 {[%emt 0:01:24]} 31. Kg1 {[%emt 0:01:27]} g4 {[%emt 0:01:24]} 32. hxg4 {[%emt 0:02:19]} Bxg4 {[%emt 0:01:21]} 33. Qa3 {[%emt 0:03:16]} f3 {[%emt 0:05:57]} 34. gxf3 {[%emt 0:02:58]} Rh8 {[%emt 0:01:12]} 35. Kf2 {[%emt 0:01:56]} Qd2+ {[%emt 0:00:16]} 36. Be2 {[%emt 0:00:32]} Rh2+ {[%emt 0:00:10]} 0-1